Cogmind - Beta 12 @@@ ROGUE MODE // 2023.10.12 @ 14:24:03 Player: Figgis Result: Destroyed by G-34 Mercenary with Small Laser Performance ------------- Evolutions (0) 0 Regions Visited (2) 400 Robots Destroyed (23) 115 Value Destroyed (579) 579 Prototype IDs (0) 0 Alien Tech Used (0) 0 Bonus (0) 0 TOTAL SCORE: 1094 Bonus ------- None Cogmind --------- Core Integrity 0/250 Matter 281/300 Energy 99/100 System Corruption 3% Temperature Cool (31) Movement Walking (260) Ox2 Location -10/Mines Parts ------- > --- POWER (1) -------- (None) > --- PROPULSION (2) --- Aluminum Leg > --- UTILITY (2) ------ Large Storage Unit Visual Processing Unit > --- WEAPON (2) ------- Medium Laser Assault Rifle > --- INVENTORY (15) --- Aluminum Leg Aluminum Leg Aluminum Leg Aluminum Leg Aluminum Leg Aluminum Leg High-capacity Matter Pod (123) Assault Rifle Peak State ------------ > --- POWER ------------ Light Nuclear Core > --- PROPULSION ------- Aluminum Leg Aluminum Leg > --- UTILITY ---------- Large Storage Unit Visual Processing Unit > --- WEAPON ----------- Particle Gun Assault Rifle > --- INVENTORY -------- Ion Engine Aluminum Leg Aluminum Leg Aluminum Leg Aluminum Leg Aluminum Leg High-capacity Matter Pod Medium Laser Assault Rifle Assault Rifle [Rating: 12] Favorites ----------- Power Light Ion Engine Engine Light Ion Engine Power Core Light Nuclear Core Propulsion Aluminum Leg Leg Aluminum Leg Utility Visual Processing Unit Storage Small Storage Unit Processor Visual Processing Unit Weapon Assault Rifle Energy Gun Particle Gun Ballistic Gun Assault Rifle Build | -11 -10 -10 ------- Run | Jun Mat Min Slots Evolved . | . . . Power . | . . . Propulsion . | . . . Utility . | . . . Weapon . | . . . Parts Attached 16 | 6 9 1 Power 4 | 1 3 . Engine 3 | 1 2 . Core 1 | . 1 . Reactor . | . . . Propulsion 4 | 2 2 . Treads . | . . . Leg 4 | 2 2 . Wheel . | . . . Hover . | . . . Flight . | . . . Utility 3 | 1 2 . Device . | . . . Storage 2 | 1 1 . Processor 1 | . 1 . Hackware . | . . . Protection . | . . . Artifact . | . . . Weapon 5 | 2 2 1 Energy Gun 2 | . 1 1 Energy Cannon . | . . . Ballistic Gun 3 | 2 1 . Ballistic Cannon . | . . . Launcher . | . . . Special Weapon . | . . . Impact Weapon . | . . . Slashing Weapon . | . . . Piercing Weapon . | . . . Special Melee Weapon . | . . . Unidentified Prototypes . | . . . Parts Lost 8 | . 5 3 Power 4 | . 3 1 Propulsion 2 | . 1 1 Utility . | . . . Weapon 2 | . 1 1 Highest Loss Streak 2 | . 2 2 To Critical Strikes . | . . . Average Slot Usage (%) 94 | . 97 87 Engine 9 | . 12 2 Leg 27 | . 27 27 Storage 14 | . 14 14 Processor 13 | . 12 14 Energy Gun 6 | . 3 14 Ballistic Gun 21 | . 24 14 Naked Turns . | . . . Heaviest Build 30 | 12 30 30 Greatest Support 20 | 20 20 20 Greatest Overweight (x) 2 | 1 2 2 Average Overweight (x) . | . . 1 Largest Inventory Capacity 15 | 8 15 15 Average Capacity 11 | 7 10 15 Most Carried 11 | 7 11 9 Average Carried 7 | 3 6 8 Final Capacity 15 | 8 15 15 Final Carried 9 | 2 9 8 Class Distribution -------------------- 78% | Mutant 21% | Scavenger-Mutant Dominant Class ---------------- Mutant | -10/Materials Mutant | -10/Mines Resources | -11 -10 -10 ----------- Run | Jun Mat Min Matter Collected 914 | 242 424 248 Remotely . | . . . Salvage Created 808 | . 538 270 Parts 55 | . 44 11 Haulers Intercepted . | . . . Recyclers Shooed 1 | . . 1 Parts Field Recycled . | . . . Retrieved Matter . | . . . Parts Self-Destructed . | . . . Prevented . | . . . Kills | -11 -10 -10 ------- Run | Jun Mat Min Combat Hostiles Destroyed 18 | . 15 3 Guns 18 | . 15 3 Classes Destroyed 5 | . 3 2 Builder 2 | . . 2 Recycler 1 | . . 1 Watcher 2 | . 2 . Swarmer 5 | . 5 . Grunt 13 | . 10 3 Best Kill Streak 6 | . 6 3 Combat Bots Only 6 | . 6 1 Max Kills in Single Turn 1 | . 1 1 Gunslinging . | . . . Exploded . | . . . Melee . | . . . Uniques/NPCs Destroyed . | . . . Combat | -11 -10 -10 -------- Run | Jun Mat Min Damage Taken 1192 | . 600 592 Core 259 | . 118 141 Absorbed by Shields . | . . . Regen/Repaired (Parts) 37 | . 37 . Core Remaining (%) 100 | 100 . . Volleys Fired 94 | . 67 27 Largest 2 | . 2 2 Hottest 85 | . 85 85 Shots Fired 174 | . 132 42 Gun 174 | . 132 42 Cannon . | . . . Launcher . | . . . Special . | . . . Kinetic 153 | . 126 27 Thermal 21 | . 6 15 Explosive . | . . . Electromagnetic . | . . . Robot Hit Streak 10 | . 10 5 Robot Miss Streak 6 | . 6 3 Penetration Max . | . . . Secondary Targets 1 | . 1 . Max Gunslinging Chain 1 | . 1 . Shots Hit Robots 96 | . 69 27 Core Hits 38 | . 27 11 Critical Kills 1 | . 1 . Critical Parts Destroyed 1 | . . 1 Critical Strikes 4 | . 1 3 Burn 2 | . . 2 Destroy 2 | . 1 1 Melee Attacks . | . . . Impact . | . . . Slashing . | . . . Piercing . | . . . Sneak Attacks . | . . . Combat Hostiles . | . . . Follow-up Attacks . | . . . Damage Inflicted 1269 | . 910 359 Guns 1269 | . 910 359 Cannons . | . . . Explosions . | . . . Melee . | . . . Ramming . | . . . Kinetic 1056 | . 848 208 Thermal 213 | . 62 151 Explosive . | . . . Electromagnetic . | . . . Impact . | . . . Slashing . | . . . Piercing . | . . . Highest Corruption 3 | . 3 3 Average Corruption 2 | . 2 3 Corruption Purged . | . . . Corruption Blocked . | . . . Effects 15 | . 11 4 Message Errors 1 | . 1 . Matter Fused 4 | . 4 . Heat Flow Errors 3 | . 1 2 Energy Discharges 4 | . 2 2 Data Loss (major) 2 | . 2 . Weapon Failures 1 | . 1 . Overload Shots . | . . . Overflow Damage . | . . . Projectiles . | . . . Explosions . | . . . Melee . | . . . Knockbacks . | . . . Impact . | . . . Kinetic . | . . . Secondary . | . . . Self-Inflicted Damage . | . . . Shots . | . . . Rammed . | . . . Targets Rammed . | . . . Kicked . | . . . Crushed . | . . . Highest Temperature 350 | . 260 350 Average Temperature 130 | . 96 150 Received Heat Transfer 519 | . 273 246 Effects 3 | . . 3 Shutdowns 1 | . . 1 Energy Bleed 1 | . . 1 Damage (minor) 1 | . . 1 Siege Activations . | . . . Robots Corrupted . | . . . Combat Hostiles . | . . . Parts Fried . | . . . Impact Corruptions . | . . . Robots Melted . | . . . Combat Hostiles . | . . . Parts Melted . | . . . Heat Transferred 666 | . 148 518 Parts Sabotaged . | . . . Parts Stolen . | . . . Parts Stripped . | . . . Power Chain Reactions . | . . . Missiles Intercepted . | . . . Alert | -11 -10 -10 ------- Run | Jun Mat Min Peak Influence 233 | . 233 58 Initial 3 | . . 3 Average 70 | . 84 40 Maximum Alert Level 1 | . 1 . Low Security (%) 98 | 100 98 100 Level 1 1 | . 1 . Level 2 . | . . . Level 3 . | . . . Level 4 . | . . . Level 5 . | . . . High Security . | . . . Max Security . | . . . Squads Dispatched 5 | . 5 . Investigation 4 | . 4 . Extermination . | . . . Reinforcement 1 | . 1 . Assault . | . . . Garrison . | . . . Intercept . | . . . Searches Triggered . | . . . Construction Impeded . | . . . Haulers Reinforced . | . . . Active Scanning Responses . | . . . Cargo Convoy Interrupts . | . . . Stealth | -11 -10 -10 --------- Run | Jun Mat Min Distress Signals 1 | . 1 . Communications Jammed . | . . . Distress Signals . | . . . Times Spotted 33 | . 27 6 Peak Tracking Total 4 | . 4 2 Tactical Retreats 1 | . 1 . Traps | -11 -10 -10 ------- Run | Jun Mat Min Traps Triggered 4 | . 4 . Indirectly . | . . . Trap Hack Attempts . | . . . Triggered . | . . . Disarmed . | . . . Reprogrammed . | . . . Reused . | . . . Traps Extracted . | . . . Installed . | . . . Triggered . | . . . Machines | -11 -10 -10 ---------- Run | Jun Mat Min Machines Disabled . | . . . Max in Single Turn . | . . . Machines Repaired . | . . . Machines Sabotaged . | . . . Overloaded Fab Kills . | . . . Hacking | -11 -10 -10 --------- Run | Jun Mat Min Machines Accessed 9 | . 9 . Terminals 7 | . 7 . Fabricators . | . . . Repair Stations 1 | . 1 . Recycling Units 1 | . 1 . Scanalyzers . | . . . Garrison Access . | . . . Total Hacks 22 | . 22 . Successful 8 | . 8 . Failed 13 | . 13 . Catastrophic 2 | . 2 . Database Lockouts 1 | . 1 . Manual 11 | . 11 . Terminals 18 | . 18 . Fabricators . | . . . Repair Stations 2 | . 2 . Recycling Units 2 | . 2 . Scanalyzers . | . . . Garrison Access . | . . . Terminal Hacks 6 | . 6 . Record 3 | . 3 . Robot Analysis 2 | . 2 . Branch Access Points 1 | . 1 . Fabricator Hacks . | . . . Repair Station Hacks 2 | . 2 . Scan Component 1 | . 1 . Repair 1 | . 1 . Recycling Unit Hacks . | . . . Scanalyzer . | . . . Garrison Access Hacks . | . . . Unauthorized Hacks . | . . . Terminals . | . . . Fabricators . | . . . Repair Stations . | . . . Recycling Units . | . . . Scanalyzers . | . . . Garrison Access . | . . . Data Cores Recovered . | . . . Used . | . . . Hacking Detections 8 | . 8 . Full Trace Events 2 | . 2 . Feedback Events . | . . . Feedback Blocked . | . . . Robot Schematics Acquired . | . . . Robots Built . | . . . Authchips . | . . . Time . | . . . Total Robot Build Rating . | . . . Part Schematics Acquired . | . . . Parts Built . | . . . Authchips . | . . . Time . | . . . Total Part Build Rating . | . . . Parts Repaired 1 | . 1 . Time 26 | . 26 . Parts Recycled . | . . . Recycled Matter . | . . . Retrieved Matter . | . . . Retrieved Components . | . . . Parts Scanalyzed . | . . . Part Schematics Acquired . | . . . Parts Damaged . | . . . Bothacking | -11 -10 -10 ------------ Run | Jun Mat Min Used RIF Installer . | . . . Robots Hacked . | . . . Non-combat . | . . . Combat . | . . . Robot Hacks Applied . | . . . Relay Couplers Released . | . . . Fabnet Peak Effective % . | . . . Robots Rewired . | . . . Allies Hacked . | . . . Hacks Repelled . | . . . Allies | -11 -10 -10 -------- Run | Jun Mat Min Total Allies . | . . . Largest Group . | . . . Highest-Rated Group . | . . . Highest-Rated Ally . | . . . Total Orders . | . . . Ally Attacks . | . . . Total Damage . | . . . Kills . | . . . Allies Corrupted . | . . . Allies Melted . | . . . Intel | -11 -10 -10 ------- Run | Jun Mat Min Robot Analysis Total 2 | . 2 . Derelict Logs Recovered 3 | . . 3 Drone Launches . | . . . Drone Recoveries . | . . . Exploration | -11 -10 -10 ------------- Run | Jun Mat Min Turns Passed 1756 | 39 1267 450 Spaces Moved 895 | 28 672 195 Core 15 | 15 . . Treads . | . . . Legs 880 | 13 672 195 Wheels . | . . . Hover . | . . . Flight . | . . . Fastest Speed 50 | 50 120 190 Average Speed 147 | 93 136 190 Slowest Speed 260 | 120 260 260 Overloaded Moves . | . . . Propulsion Burnouts . | . . . Robots Hopped . | . . . Cave-ins Triggered . | . . . Exploration Rate (%) 49 | 3 92 53 Regions Visited 2 Branch Regions 1 Pre-discovered Areas . | . . . Known Exits Taken 1 | . 1 . Unknown Exits Taken 1 | 1 . . Scrap Searched 1 | . . 1 Spaces Dug . | . . . Terrain Destroyed . | . . . Melee . | . . . Projectile . | . . . AOE . | . . . Terrain Rammed . | . . . Walls Destroyed . | . . . Machines Disabled . | . . . Actions | -11 -10 -10 --------- Run | Jun Mat Min Total 1159 | 40 887 232 Wait 134 | . 125 9 Move 893 | 27 671 195 Hop . | . . . Pick Up 21 | 7 14 . Fast Attach 1 | 1 . . Attach 13 | 5 7 1 Detach . | . . . Swap 2 | . 2 . Drop 1 | . 1 . Fire 94 | . 67 27 Melee . | . . . Ram . | . . . Kick . | . . . Crush . | . . . Escape Stasis . | . . . Rewire . | . . . Trap . | . . . Miscellaneous . | . . . Route ------- -11/Junkyard -10/Materials (discovered 4 exits: [*Mat x2] / *Min x2) -10/Mines History --------- Turn | Location | Event 17 | -11/Junkyard | Discovered new exit (range 14) 40 | -11/Junkyard | Entered Materials 40 | -10/Materials | Discovered new exit (range 7) 189 | -10/Materials | Discovered new exit (range 7) 302 | -10/Materials | Build established: Mutant 655 | -10/Materials | Identified exit to Mines 710 | -10/Materials | Discovered new exit (range 18) 724 | -10/Materials | Central database locked down 982 | -10/Materials | Discovered new exit (range 7) 1174 | -10/Materials | Repaired Aluminum Leg 1307 | -10/Materials | Entered Mines 1348 | -10/Mines | Core integrity fell below 50% 1368 | -10/Mines | Met a Derelict bent on vengeance 1379 | -10/Mines | Core integrity fell below 20% 1500 | -10/Mines | Learned Materials emergency access door positions 1563 | -10/Mines | Learned Materials emergency access door positions 1592 | -10/Mines | Learned location of 1 exit from Materials 1615 | -10/Mines | Assembled infested the area 1620 | -10/Mines | Assisted by a Guerilla fighting off Assembled 1757 | -10/Mines | Destroyed by G-34 Mercenary with Small Laser Last Messages --------------- 01655_ U-05 Engineer lays Concrete. 01656_ The unstable cave ceiling collapses. 01656_ U-05 Engineer lays Concrete. 01657_ D-53 Grenadier destroyed. 01657_ U-05 Engineer lays Concrete. 01660_ U-05 Engineer builds a Wall. 01661_ U-05 Engineer lays Concrete. 01663_ U-05 Engineer builds a Wall. 01664_ The unstable cave ceiling collapses. 01664_ U-05 Engineer lays Concrete. 01665_ The unstable cave ceiling collapses. 01666_ U-05 Engineer lays Concrete. 01669_ The unstable cave ceiling collapses. 01676_ U-05 Engineer destroyed. 01692_ K-01 Serf collects debris. 01740_ Critical hit (Burn: +37). 01742_ Particle Gun destroyed. 01743_ Aluminum Leg destroyed. 01752_ G-47 Trooper suffers critical hit (Burn). 01755_ G-47 Trooper destroyed. Map ----- +----------------------------------------------------+ | ??????????????????????????????????? | | ??????????????????????????????????? | | ??????????????????????????????????? | | ??????????????????????????????????? | | ??????????????????????????????????? | | ??????????????????????????????????? | | ??????????????????????????????????? | | ??????????????????????????????????? | | ??????????????????????????????????? | | ??????????????????????????????????? | | ?????????????##???????????????????? | | ????????????# ??????????????????? | | ???????????? ?????????????????? | | ???????????? ????????????????? | | ??????????? ???????????????? | | ??????????? #??????????????? | | ??????????? ##????????????? | | ????????????? #???????????? | | ??????????????? #??????????? | | ????????????????? ###???????? | | ??????????????????? ##??????? | | ????????????????????? #??????? | | ??????????????????????? a= #??????? | | ????????????????????????#%g#??????? | | ?????######?????????????# #??????? | | ?????? ##????????????#@ #??????? | | ???????# ####?????????# #??????? | | ????????# ##????????# #??????? | | ????????# ##???????# #??????? | | ???????## ##??????# #??????? | | ???????# ###????# #??????? | | #?????## ###??# #??????? | | ####### ####k #??????? | | ## #??????? | | ##?????? | | #### ###### ##????? | | ### ##???## #????? | | ##????# #???? | | ## ##????# #???? | | ?# ##???# ##???? | | ## #???## #????? | | # #????# #???? | | #????## #??? | | ##?????### #?? | | ### #######????????#### #?? | | ??####?????????????????##### ##?? | | ????????????????????????????####??? | | ??????????????????????????????????? | | ??????????????????????????????????? | | ??????????????????????????????????? | +----------------------------------------------------+ Best States ------------- Heat Dissipation 25 Energy Generation 14 Energy Capacity 250 Matter Stores 300 Matter Capacity 300 Sight Range 18 Terrain Scan Density 10 Evasion (%) 55 Item Schematics ----------------- None Robot Schematics ------------------ None Fabricated ------------ Nothing Alien Tech Used ----------------- None Achievements -------------- None Challenges ------------ None Game ------ Seed PhasingDisruptorShielding Manual? 0 Play Time 00:12:07 Cumulative 47.4 hours Start 2023.10.12 @ 14:13:14 End 2023.10.12 @ 14:24:03 Sessions 1 Manual Loads 0 Difficulty Rogue Special Mode None Game No. 88 Rogue 85 Adventurer 3 Explorer 0 Win Type - Total 0 Types 0/0/0/0/0/0/0/0/0 Lore% 26 Gallery% 44 Achievement% 32 Wizard Run 0 Options --------- ASCII 0 Keyboard 0 Movement Mouse Keybinds 0 Fullscreen 2 Font 18/SmallcapsGlow Map View 76x50 Tactical HUD 1 Map Filters NONE Filters NONE Steam 1 RUN: 6521b25d-7ab6-425d-b48e-3a2e2867d0f8